[Event "27th OIBM 2024"]
[Site "Gmund am Tegernsee"]
[Date "2024.10.28"]
[Round "3.32"]
[White "Danninger, Hugo Kian"]
[Black "Zaitcev, Aleksandr"]
[Result "1-0"]
[ECO "D05"]
[WhiteElo "2057"]
[BlackElo "1868"]
[Annotator "RC"]
[PlyCount "53"]
[EventDate "2024.09.16"]
[EventType "swiss"]
[EventCountry "GER"]
[SourceTitle "playchess.com"]
[Source "ChessBase"]
[SourceQuality "1"]
[TimeControl "40/5400+30:1800+30"]

1. d4 {[%emt 0:00:11]} Nf6 {[%emt 0:00:10]} 2. Nf3 {[%emt 0:00:09]} e6 {[%emt 0:00:08]} 3. e3 {[%emt 0:00:05]} d5 {[%emt 0:00:37]} 4. Be2 {[%emt 0:00:08]} c5 {[%emt 0:02:16]} 5. b3 {[%emt 0:00:05]} cxd4 {[%emt 0:00:28]} 6. exd4 {[%emt 0:00:13]} Nc6 {[%emt 0:02:15]} 7. O-O {[%emt 0:00:28]} Bd6 {[%emt 0:02:12]} 8. Bb2 {[%emt 0:00:10]} O-O {[%emt 0:01:49]} 9. Nbd2 {[%emt 0:00:28]} Qc7 {[%emt 0:07:38]} 10. c4 {[%emt 0:02:32]} dxc4 {[%emt 0:02:53]} 11. Nxc4 {[%emt 0:04:09]} Be7 {[%emt 0:06:24]} 12. Rc1 {[%emt 0:02:08]} Qf4 {[%emt 0:08:36]} 13. Nce5 {[%emt 0:14:31]} Nxe5 {[%emt 0:11:00]} 14. dxe5 {[%emt 0:01:16]} Rd8 {[%emt 0:03:16]} 15. Bd3 {[%emt 0:27:56]} Nd5 {[%emt 0:12:14]} 16. Rc4 {[%emt 0:02:56]} Qh6 {[%emt 0:00:08]} 17. Bc1 {[%emt 0:05:06]} Qh5 {[%emt 0:00:11]} 18. g4 {[%emt 0:07:47]} Qh3 {[%emt 0:00:44]} 19. g5 {[%emt 0:03:36]} Nb4 {[%emt 0:12:01]} 20. Rh4 {[%emt 0:00:08]} Rxd3 {[%emt 0:00:17]} 21. Rxh3 {[%emt 0:04:40]} Rxd1 {[%emt 0:00:10]} 22. Rxd1 {[%emt 0:00:04]} Nxa2 {[%emt 0:01:39]} 23. Bd2 {[%emt 0:06:28]} b6 {[%emt 0:02:17]} 24. Be1 {[%emt 0:04:45]} a5 {[%emt 0:04:18]} 25. Nd4 {[%emt 0:02:22]} Bxg5 {[%emt 0:03:12]} 26. Rg3 {[%emt 0:02:23]} Bf4 {[%emt 0:05:07]} 27. Ne2 {[%emt 0:00:59]} 1-0

[Event "27th OIBM 2024"]
[Site "Gmund am Tegernsee"]
[Date "2024.10.28"]
[Round "3.33"]
[White "Auge, Hendrik"]
[Black "Beckers, Thomas"]
[Result "1/2-1/2"]
[ECO "B51"]
[WhiteElo "1851"]
[BlackElo "2032"]
[Annotator "RC"]
[PlyCount "34"]
[EventDate "2024.09.16"]
[EventType "swiss"]
[EventCountry "GER"]
[SourceTitle "playchess.com"]
[Source "ChessBase"]
[SourceQuality "1"]
[TimeControl "40/5400+30:1800+30"]

1. e4 {[%emt 0:00:03]} c5 {[%emt 0:00:39]} 2. Nf3 {[%emt 0:00:12]} d6 {[%emt 0:00:31]} 3. Bb5+ {[%emt 0:00:11]} Nd7 {[%emt 0:00:37]} 4. O-O {[%emt 0:00:46]} a6 {[%emt 0:00:32]} 5. Bxd7+ {[%emt 0:03:12]} Bxd7 {[%emt 0:00:37]} 6. h3 {[%emt 0:00:41]} g6 {[%emt 0:03:27]} 7. Re1 {[%emt 0:01:14]} Bg7 {[%emt 0:01:50]} 8. c3 {[%emt 0:03:26]} Qc7 {[%emt 0:03:22]} 9. d4 {[%emt 0:01:55]} e5 {[%emt 0:03:28]} 10. dxe5 {[%emt 0:17:59]} dxe5 {[%emt 0:00:23]} 11. c4 {[%emt 0:03:37]} Ne7 {[%emt 0:01:22]} 12. Nc3 {[%emt 0:01:03]} O-O {[%emt 0:00:26]} 13. Bg5 {[%emt 0:04:29]} f6 {[%emt 0:02:46]} 14. Be3 {[%emt 0:05:48]} b6 {[%emt 0:02:03]} 15. Qe2 {[%emt 0:11:02]} Nc6 {[%emt 0:02:12]} 16. Nd5 {[%emt 0:02:08]} Qd8 {[%emt 0:00:09]} 17. Qd2 {[%emt 0:09:58]} Nd4 {[%emt 0:02:59]} 1/2-1/2

[Event "27th OIBM 2024"]
[Site "Gmund am Tegernsee"]
[Date "2024.10.28"]
[Round "3.34"]
[White "Czap, Bernard"]
[Black "Spieker, Hans-Joachim"]
[Result "1/2-1/2"]
[ECO "A16"]
[WhiteElo "2056"]
[BlackElo "1830"]
[Annotator "RC"]
[PlyCount "36"]
[EventDate "2024.09.16"]
[EventType "swiss"]
[EventCountry "GER"]
[SourceTitle "playchess.com"]
[Source "ChessBase"]
[SourceQuality "1"]
[TimeControl "40/5400+30:1800+30"]

1. c4 {[%emt 0:00:02]} Nf6 {[%emt 0:00:03]} 2. g3 {[%emt 0:00:07]} g6 {[%emt 0:00:05]} 3. Bg2 {[%emt 0:00:08]} Bg7 {[%emt 0:00:03]} 4. Nc3 {[%emt 0:00:16]} O-O {[%emt 0:00:43]} 5. e4 {[%emt 0:00:42]} d6 {[%emt 0:02:22]} 6. Nge2 {[%emt 0:00:32]} Be6 {[%emt 0:05:16]} 7. d3 {[%emt 0:05:13]} c5 {[%emt 0:03:24]} 8. O-O {[%emt 0:03:21]} Nc6 {[%emt 0:01:10]} 9. a3 {[%emt 0:03:43]} a6 {[%emt 0:03:08]} 10. Rb1 {[%emt 0:00:22]} Rb8 {[%emt 0:00:31]} 11. b4 {[%emt 0:02:23]} cxb4 {[%emt 0:05:16]} 12. axb4 {[%emt 0:01:37]} b5 {[%emt 0:03:41]} 13. cxb5 {[%emt 0:10:07]} axb5 {[%emt 0:00:12]} 14. d4 {[%emt 0:02:35]} Bd7 {[%emt 0:04:52]} 15. h3 {[%emt 0:02:43]} Qc8 {[%emt 0:08:07]} 16. Kh2 {[%emt 0:01:58]} e5 {[%emt 0:07:30]} 17. d5 {[%emt 0:14:44]} Nd4 {[%emt 0:03:53]} 18. Nxd4 {[%emt 0:03:57]} Qxc3 {[%emt 0:03:57]} 1/2-1/2

[Event "27th OIBM 2024"]
[Site "Gmund am Tegernsee"]
[Date "2024.10.28"]
[Round "3.35"]
[White "Ramirez Maillo, Cristian"]
[Black "Weiss, Robert"]
[Result "1-0"]
[ECO "C42"]
[WhiteElo "2051"]
[BlackElo "1826"]
[Annotator "RC"]
[PlyCount "69"]
[EventDate "2024.09.16"]
[EventType "swiss"]
[EventCountry "GER"]
[SourceTitle "playchess.com"]
[Source "ChessBase"]
[SourceQuality "1"]
[TimeControl "40/5400+30:1800+30"]

1. e4 {[%emt 0:00:02]} e5 {[%emt 0:00:12]} 2. Nf3 {[%emt 0:00:07]} Nf6 {[%emt 0:00:17]} 3. Nxe5 {[%emt 0:01:53]} d6 {[%emt 0:00:24]} 4. Nf3 {[%emt 0:00:07]} Nxe4 {[%emt 0:00:36]} 5. Nc3 {[%emt 0:00:10]} Nxc3 {[%emt 0:00:51]} 6. dxc3 {[%emt 0:00:07]} Be7 {[%emt 0:01:04]} 7. Be3 {[%emt 0:00:20]} Nd7 {[%emt 0:00:58]} 8. Qd2 {[%emt 0:01:35]} O-O {[%emt 0:01:05]} 9. O-O-O {[%emt 0:05:22]} Nf6 {[%emt 0:01:05]} 10. Bd3 {[%emt 0:00:59]} c5 {[%emt 0:02:14]} 11. Kb1 {[%emt 0:01:14]} b5 {[%emt 0:09:24]} 12. Bxb5 {[%emt 0:01:27]} Be6 {[%emt 0:02:15]} 13. a3 {[%emt 0:05:19]} Rb8 {[%emt 0:04:12]} 14. c4 {[%emt 0:04:11]} Qb6 {[%emt 0:03:15]} 15. Qc1 {[%emt 0:01:45]} a6 {[%emt 0:11:15]} 16. Ba4 {[%emt 0:00:17]} Bxc4 {[%emt 0:00:55]} 17. Nd2 {[%emt 0:00:19]} Be6 {[%emt 0:03:18]} 18. Ka1 {[%emt 0:03:28]} Nd5 {[%emt 0:04:11]} 19. Nc4 {[%emt 0:01:00]} Qb7 {[%emt 0:03:50]} 20. Na5 {[%emt 0:05:51]} Qc7 {[%emt 0:13:21]} 21. Nc6 {[%emt 0:01:17]} Rb6 {[%emt 0:06:59]} 22. Nxe7+ {[%emt 0:00:19]} Qxe7 {[%emt 0:00:57]} 23. Bg5 {[%emt 0:03:07]} f6 {[%emt 0:05:15]} 24. Bd2 {[%emt 0:11:33]} Rfb8 {[%emt 0:08:49]} 25. c4 {[%emt 0:06:14]} Nc7 {[%emt 0:06:17]} 26. Bc3 {[%emt 0:14:59]} d5 {[%emt 0:04:34]} 27. Rhe1 {[%emt 0:05:47]} d4 {[%emt 0:00:56]} 28. Ba5 {[%emt 0:00:59]} Rd6 {[%emt 0:03:47]} 29. Qf4 {[%emt 0:03:04]} g5 {[%emt 0:01:00]} 30. Qg3 {[%emt 0:00:16]} Kf7 {[%emt 0:01:21]} 31. f4 {[%emt 0:00:27]} gxf4 {[%emt 0:00:38]} 32. Qxf4 {[%emt 0:00:11]} Ne8 {[%emt 0:00:42]} 33. Re5 {[%emt 0:04:56]} Qb7 {[%emt 0:00:28]} 34. Rd2 {[%emt 0:01:04]} Ng7 {[%emt 0:00:22]} 35. Rxc5 {[%emt 0:00:26]} 1-0

[Event "27th OIBM 2024"]
[Site "Gmund am Tegernsee"]
[Date "2024.10.28"]
[Round "3.37"]
[White "Haresh, Venkata Narayanaswam"]
[Black "Cilo, Selimhan"]
[Result "*"]
[ECO "B23"]
[WhiteElo "1717"]
[BlackElo "2029"]
[Annotator "RC"]
[PlyCount "90"]
[EventDate "2024.09.16"]
[EventType "swiss"]
[EventCountry "GER"]
[SourceTitle "playchess.com"]
[Source "ChessBase"]
[SourceQuality "1"]
[TimeControl "40/5400+30:1800+30"]

1. e4 {[%emt 0:00:05]} c5 {[%emt 0:00:15]} 2. Nc3 {[%emt 0:00:08]} e6 {[%emt 0:00:17]} 3. Nge2 {[%emt 0:00:09]} Nc6 {[%emt 0:00:28]} 4. g3 {[%emt 0:00:14]} d5 {[%emt 0:00:34]} 5. exd5 {[%emt 0:00:14]} exd5 {[%emt 0:00:10]} 6. d4 {[%emt 0:02:50]} Bg4 {[%emt 0:05:43]} 7. Bg2 {[%emt 0:06:38]} Nxd4 {[%emt 0:02:29]} 8. h3 {[%emt 0:00:49]} Bf3 {[%emt 0:07:20]} 9. Kf1 {[%emt 0:01:54]} Bxg2+ {[%emt 0:19:47]} 10. Kxg2 {[%emt 0:00:05]} Nxe2 {[%emt 0:01:07]} 11. Qxe2+ {[%emt 0:00:02]} Be7 {[%emt 0:01:27]} 12. Re1 {[%emt 0:21:11]} Kf8 {[%emt 0:09:47]} 13. Qb5 {[%emt 0:12:54]} d4 {[%emt 0:09:31]} 14. Ne4 {[%emt 0:02:52]} Qd5 {[%emt 0:05:19]} 15. Bf4 {[%emt 0:14:04]} Rc8 {[%emt 0:03:08]} 16. f3 {[%emt 0:07:55]} a6 {[%emt 0:05:44]} 17. Qa5 {[%emt 0:05:33]} Qc6 {[%emt 0:03:39]} 18. Re2 {[%emt 0:02:46]} Nf6 {[%emt 0:03:19]} 19. Bg5 {[%emt 0:09:11]} Bd8 {[%emt 0:03:55]} 20. Qa3 {[%emt 0:02:38]} Nxe4 {[%emt 0:01:28]} 21. Bxd8 {[%emt 0:00:21]} Rxd8 {[%emt 0:00:10]} 22. Rxe4 {[%emt 0:00:24]} g6 {[%emt 0:00:23]} 23. b4 {[%emt 0:00:42]} cxb4 {[%emt 0:02:03]} 24. Qxb4+ {[%emt 0:00:05]} Kg7 {[%emt 0:00:09]} 25. Rc1 {[%emt 0:02:58]} Qc3 {[%emt 0:07:01]} 26. Qxc3 {[%emt 0:00:50]} dxc3 {[%emt 0:00:04]} 27. Kf2 {[%emt 0:01:12]} Rd2+ {[%emt 0:03:53]} 28. Ke3 {[%emt 0:00:33]} b5 {[%emt 0:00:43]} 29. a4 {[%emt 0:01:08]} f5 {[%emt 0:01:55]} 30. Re5 {[%emt 0:02:04]} bxa4 {[%emt 0:01:37]} 31. g4 {[%emt 0:01:15]} fxg4 {[%emt 0:01:45]} 32. fxg4 {[%emt 0:00:50]} Rc8 {[%emt 0:00:41]} 33. Re4 {[%emt 0:00:52]} a3 {[%emt 0:00:31]} 34. Ra4 {[%emt 0:00:07]} Re8+ {[%emt 0:00:30]} 35. Kf3 {[%emt 0:00:25]} Rf8+ {[%emt 0:00:29]} 36. Kg3 {[%emt 0:01:08]} Rdf2 {[%emt 0:00:31]} 37. Rxa6 {[%emt 0:01:13]} R8f3+ {[%emt 0:00:32]} 38. Kh4 {[%emt 0:00:02]} h6 {[%emt 0:00:35]} 39. Ra7+ {[%emt 0:00:28]} Rf7 {[%emt 0:00:13]} 40. Rxa3 {[%emt 0:00:58]} g5+ {[%emt 0:00:46]} 41. Kh5 {[%emt 0:30:07]} R2f3 {[%emt 0:30:28]} 42. Rh1 {[%emt 0:00:12]} R7f6 {[%emt 0:00:00]} 43. Ra7+ {[%emt 0:00:00]} Rf7 {[%emt 0:00:00]} 44. Ra3 {[%emt 0:00:00]} R7f6 {[%emt 0:00:00]} 45. Ra7+ {[%emt 0:00:00]} Rf7 {[%emt 0:00:00]} *

[Event "27th OIBM 2024"]
[Site "Gmund am Tegernsee"]
[Date "2024.10.28"]
[Round "3.38"]
[White "Heberla, Bartlomiej"]
[Black "Ruecker, Benjamin"]
[Result "1-0"]
[ECO "A34"]
[WhiteElo "2501"]
[BlackElo "2164"]
[Annotator "TA"]
[PlyCount "54"]
[EventDate "2024.09.16"]
[EventType "swiss"]
[EventCountry "GER"]
[SourceTitle "playchess.com"]
[Source "ChessBase"]
[SourceQuality "1"]
[TimeControl "40/5400+30:1800+30"]

{[%evp 15,54,35,45,18,17,18,35,24,34,23,20,23,32,28,36,24,36,38,32,33,187,206,179,185,441,437,460,473,466,472,490,482,495,492,649,644,859,604,566,515,5406]} 1. Nf3 {[%emt 0:09:55]} c5 {[%emt 0:00:54]} 2. c4 {[%emt 0:00:10]} Nf6 {[%emt 0:00:40]} 3. Nc3 {[%emt 0:00:07]} d5 {[%emt 0:01:39]} 4. cxd5 {[%emt 0:00:06]} Nxd5 {[%emt 0:00:04]} 5. d4 {[%emt 0:00:12]} Nxc3 {[%emt 0:01:15]} 6. bxc3 {[%emt 0:00:03]} g6 {[%emt 0:01:13]} 7. e3 {[%emt 0:00:19]} Bg7 {[%emt 0:01:07]} 8. Bb5+ {[%emt 0:00:06]} Bd7 {[%emt 0:05:33]} 9. Bd3 {[%emt 0:00:10]} O-O {[%emt 0:03:45]} 10. O-O {[%emt 0:01:47][%cal Bh1f1,Bf1c1,Bc1c5][%mdl 32]} cxd4 {[%emt 0:02:23]} 11. cxd4 {[%emt 0:00:09] White is slightly better.} Nc6 {[%emt 0:11:11]} 12. Ba3 {[%emt 0:02:03]} Qa5 {[%emt 0:09:40]} 13. Qb3 {[%emt 0:00:18][%cal Oa1c1]} Be6 {[%emt 0:02:06]} 14. Qb2 {[%emt 0:00:07][%cal Oa1c1]} Bd5 {[%emt 0:12:46]} 15. Rfc1 {[%emt 0:02:49]} Rfc8 {[%emt 0:06:18]} 16. Rc5 {[%emt 0:05:36]} Qd8 {[%emt 0:01:41] [#] ...Bxf3 would now be deadly.} 17. Qxb7 {[%emt 0:05:59] Strongly threatening e4.} Bxf3 {[%emt 0:16:43] A mistake that costs the game.} (17... a6 $14 18. Bc4 (18. Bxa6 $2 {loses.} Rcb8 $19) 18... Bxc4 (18... Rcb8 $2 19. Qxa8 Rxa8 20. Bxd5 $18) 19. Rxc4 (19. Rxc6 Rxc6 20. Qxc6 Bd5 $14) 19... Rab8 20. Qxa6 Ra8) 18. gxf3 $18 {[%emt 0:00:16]} Rab8 {[%emt 0:01:43] Black is weak on the light squares} 19. Qa6 {[%emt 0:00:43]} e5 $2 {[%emt 0:04:24]} (19... Rb6 {was necessary.}) 20. Rxc6 {[%emt 0:02:24] White is clearly winning.} Rxc6 {[%emt 0:00:58]} 21. Qxc6 {[%emt 0:00:07]} exd4 {[%emt 0:01:30]} 22. e4 {[%emt 0:03:38]} Be5 {[%emt 0:01:24]} 23. Rc1 {[%emt 0:04:43]} Qg5+ {[%emt 0:03:54]} 24. Kf1 {[%emt 0:00:16]} Qh5 {[%emt 0:02:13]} 25. Ke2 {[%emt 0:00:39] [#] aiming for Rb1.} Qxh2 {[%emt 0:00:27]} 26. Qd7 {[%emt 0:02:53] Rc8+ would kill now.} Kg7 {[%emt 0:02:47]} 27. Rc8 {[%emt 0:01:16]} Bd6 {[%emt 0:03:41] Weighted Error Value: White=0.34/Black=0.47.  Mistake:       	---       	Black=2      Inaccurate:     	---       	Black=2      OK:         	White=7     	Black=5      Best:        	White=2     	Black=1} (27... Rxc8 $142 28. Qxc8 Bd6) 1-0

[Event "27th OIBM 2024"]
[Site "Gmund am Tegernsee"]
[Date "2024.10.28"]
[Round "3.39"]
[White "Zeier, Klaus"]
[Black "Naumann, Alexander"]
[Result "1/2-1/2"]
[ECO "C78"]
[WhiteElo "2178"]
[BlackElo "2487"]
[Annotator "TA"]
[PlyCount "76"]
[EventDate "2024.09.16"]
[EventType "swiss"]
[EventCountry "GER"]
[SourceTitle "playchess.com"]
[Source "ChessBase"]
[SourceQuality "1"]
[TimeControl "40/5400+30:1800+30"]

{[%evp 19,76,39,48,0,6,0,0,3,2,-19,2,-6,10,0,31,45,45,21,79,86,80,68,81,32,53,70,74,53,69,70,79,87,94,73,79,33,34,18,14,18,18,36,12,0,7,9,10,8,7,6,2,0,0,0,0,0,0,0,0]} 1. e4 {[%emt 0:00:02]} e5 {[%emt 0:00:07]} 2. Nf3 {[%emt 0:00:08]} Nc6 {[%emt 0:00:05]} 3. Bb5 {[%emt 0:00:12][%cal Bf1b5,Bb5a4,Ba4b3][%mdl 32]} a6 {[%emt 0:00:06]} 4. Ba4 {[%emt 0:00:09]} Nf6 {[%emt 0:00:11]} 5. O-O {[%emt 0:00:12]} Bc5 {[%emt 0:00:05]} 6. c3 {[%emt 0:01:27]} b5 {[%emt 0:00:49]} 7. Bb3 {[%emt 0:00:54]} d6 {[%emt 0:00:13]} 8. a4 {[%emt 0:01:13]} Rb8 {[%emt 0:00:58]} 9. d4 {[%emt 0:12:56]} Bb6 {[%emt 0:00:22]} 10. axb5 {[%emt 0:00:14]} axb5 {[%emt 0:00:07]} 11. h3 {[%emt 0:07:23]} O-O {[%emt 0:02:08]} 12. Be3 {[%emt 0:04:34]} h6 {[%emt 0:03:18]} 13. Nbd2 {[%emt 0:02:47][%cal Bb1d2,Bd2f1,Bf1e3][%mdl 32]} Re8 {[%emt 0:00:37]} 14. Qe2 {[%emt 0:02:46]} Bd7 {[%emt 0:10:04]} 15. Bc2 {[%emt 0:07:44]} (15. Qxb5 $2 Nxd4 16. Qd3 Nxb3 17. Nxb3 Bxe3 18. Qxe3 Rxb3 $19) 15... Qc8 {[%emt 0:18:10]} 16. Rfd1 {[%emt 0:18:49]} (16. Qxb5 $2 exd4 17. Bxh6 (17. cxd4 $2 Nxd4 18. Qd3 Bb5 $19) 17... gxh6 $19) 16... Nd8 {[%emt 0:05:53]} 17. dxe5 {[%emt 0:01:50]} dxe5 {[%emt 0:00:37]} 18. Nf1 {[%emt 0:02:41]} Nb7 {[%emt 0:03:39]} (18... b4 $11 {remains equal.}) 19. Bxb6 $16 {[%emt 0:01:10]} cxb6 {[%emt 0:00:02]} 20. Ne3 {[%emt 0:00:50] White is more active.} Nc5 {[%emt 0:01:21]} 21. Ra7 {[%emt 0:04:57]} ({Better is} 21. Nd5 $16 {Hoping for Nxf6+.} Nxd5 22. exd5 (22. Rxd5 Qc7 $14)) 21... Rb7 {[%emt 0:05:38]} 22. Rxb7 {[%emt 0:02:15]} Qxb7 {[%emt 0:00:09]} 23. Nf5 {[%emt 0:03:42]} Bxf5 {[%emt 0:10:56]} 24. exf5 {[%emt 0:00:03]} Qc7 {[%emt 0:06:18]} 25. Qxb5 {[%emt 0:01:47]} e4 {[%emt 0:00:09]} 26. Re1 {[%emt 0:00:50]} Qf4 {[%emt 0:06:16] Prevents Nd2} 27. b4 {[%emt 0:08:16]} (27. Qxb6 $2 {loses.} exf3 28. Rxe8+ Nxe8 $19) ({White should play} 27. Nd4 $16) 27... Ncd7 $14 {[%emt 0:00:53]} 28. Qc4 {[%emt 0:01:08] Repels Qc7} Qxf5 {[%emt 0:04:17]} 29. Nd2 {[%emt 0:02:30][%cal Rd2e4]} Qd5 $1 {[%emt 0:09:15]} 30. Qxd5 {[%emt 0:00:18]} (30. Bxe4 $2 {perishes.} Qxd2 $19) 30... Nxd5 {[%emt 0:00:02]} 31. Ba4 {[%emt 0:00:17] The position is equal.} Nxc3 {[%emt 0:02:31]} 32. Bxd7 {[%emt 0:00:32]} Rd8 {[%emt 0:00:01]} 33. Nxe4 {[%emt 0:01:08]} Nxe4 {[%emt 0:00:07]} 34. Rxe4 {[%emt 0:01:45]} Rxd7 $11 {[%emt 0:00:06] KR-KR} 35. Kf1 {[%emt 0:00:36]} Rd5 {[%emt 0:01:25]} 36. Ke2 {[%emt 0:03:28]} f5 {[%emt 0:01:43]} 37. Rc4 {[%emt 0:00:45]} Kf7 {[%emt 0:03:02]} 38. Rc7+ {[%emt 0:00:43]} Kf8 {[%emt 0:00:37] Weighted Error Value: White=0.12 (very precise) /Black=0.09 (flawless) .  Mistake:       	White=2     	Black=1      Inaccurate:     	---       	Black=1      OK:         	White=9     	Black=8      Best:        	White=2     	Black=5      Strong:       	---       	Black=1} 1/2-1/2

[Event "27th OIBM 2024"]
[Site "Gmund am Tegernsee"]
[Date "2024.10.28"]
[Round "3.40"]
[White "Latzke, Boris"]
[Black "Baenziger, Fabian"]
[Result "1/2-1/2"]
[ECO "E11"]
[WhiteElo "2166"]
[BlackElo "2434"]
[Annotator "TA"]
[PlyCount "50"]
[EventDate "2024.09.16"]
[EventType "swiss"]
[EventCountry "GER"]
[SourceTitle "playchess.com"]
[Source "ChessBase"]
[SourceQuality "1"]
[TimeControl "40/5400+30:1800+30"]

{[%evp 11,50,17,27,34,25,20,16,16,21,16,38,29,25,11,14,18,8,11,12,13,14,17,18,8,20,5,10,2,8,2,10,0,0,-6,-3,-8,0,-6,0,-4,0]} 1. d4 {[%emt 0:00:03]} Nf6 {[%emt 0:00:15]} 2. c4 {[%emt 0:00:06]} e6 {[%emt 0:00:29]} 3. Nf3 {[%emt 0:00:22]} Bb4+ {[%emt 0:00:25]} 4. Nbd2 {[%emt 0:00:31]} O-O {[%emt 0:00:18]} 5. a3 {[%emt 0:02:31]} Bxd2+ {[%emt 0:00:35]} 6. Bxd2 {[%emt 0:00:10]} d6 {[%emt 0:00:08]} 7. e3 {[%emt 0:04:41]} Ne4 {[%emt 0:01:56]} 8. Bd3 {[%emt 0:08:23]} Nxd2 {[%emt 0:00:39]} 9. Qxd2 {[%emt 0:00:38]} Nd7 {[%emt 0:00:14]} 10. O-O {[%emt 0:02:04]} b6 {[%emt 0:03:19]} 11. Be4 {[%emt 0:08:06]} Rb8 {[%emt 0:00:16]} 12. Qc2 {[%emt 0:01:56]} h6 {[%emt 0:00:14] The position is equal.} 13. Bc6 {[%emt 0:04:19]} Bb7 {[%emt 0:09:37]} 14. Bxb7 {[%emt 0:08:29]} Rxb7 {[%emt 0:00:06]} 15. Rfd1 {[%emt 0:06:12]} Qe7 {[%emt 0:03:49]} 16. Qe4 {[%emt 0:03:55]} Rbb8 {[%emt 0:01:46]} 17. Qc6 {[%emt 0:01:15]} Nf6 {[%emt 0:01:53]} 18. b4 {[%emt 0:03:21]} Rfd8 {[%emt 0:03:25]} 19. Nd2 {[%emt 0:03:40]} Qd7 {[%emt 0:06:46]} 20. Qxd7 {[%emt 0:01:30]} Nxd7 {[%emt 0:00:04]} 21. Ne4 {[%emt 0:03:22]} Kf8 {[%emt 0:00:58]} 22. Kf1 {[%emt 0:01:02]} Ke7 {[%emt 0:00:48]} 23. Ke2 {[%emt 0:01:06]} c5 {[%emt 0:07:32]} 24. dxc5 {[%emt 0:02:41]} dxc5 {[%emt 0:01:30]} 25. f4 {[%emt 0:01:37]} f5 {[%emt 0:05:05] A rather calm draw.   Weighted Error Value: White=0.04 (flawless) /Black=0.02 (flawless) .  OK:         	White=5     	Black=9} 1/2-1/2

[Event "27th OIBM 2024"]
[Site "Gmund am Tegernsee"]
[Date "2024.10.28"]
[Round "3.41"]
[White "Gut, Lionel"]
[Black "Morawietz, Dieter"]
[Result "0-1"]
[ECO "E45"]
[WhiteElo "2164"]
[BlackElo "2372"]
[Annotator "RC"]
[PlyCount "46"]
[EventDate "2024.09.16"]
[EventType "swiss"]
[EventCountry "GER"]
[SourceTitle "playchess.com"]
[Source "ChessBase"]
[SourceQuality "1"]
[TimeControl "40/5400+30:1800+30"]

1. d4 {[%emt 0:00:05]} Nf6 {[%emt 0:00:08]} 2. c4 {[%emt 0:00:05]} e6 {[%emt 0:00:07]} 3. Nc3 {[%emt 0:00:05]} Bb4 {[%emt 0:00:08]} 4. e3 {[%emt 0:00:02]} b6 {[%emt 0:00:11]} 5. Nge2 {[%emt 0:00:04]} Ba6 {[%emt 0:00:11]} 6. a3 {[%emt 0:00:05]} Be7 {[%emt 0:00:21]} 7. Nf4 {[%emt 0:00:03]} O-O {[%emt 0:01:58]} 8. e4 {[%emt 0:00:02]} c5 {[%emt 0:13:11]} 9. e5 {[%emt 0:06:43]} Ne8 {[%emt 0:00:11]} 10. d5 {[%emt 0:01:26]} d6 {[%emt 0:02:30]} 11. exd6 {[%emt 0:24:33]} Nxd6 {[%emt 0:01:49]} 12. dxe6 {[%emt 0:01:09]} Nc6 {[%emt 0:07:54]} 13. Qa4 {[%emt 0:06:31]} Nd4 {[%emt 0:06:04]} 14. Be3 {[%emt 0:12:02]} fxe6 {[%emt 0:12:16]} 15. O-O-O {[%emt 0:14:51]} Bc8 {[%emt 0:09:25]} 16. Bd3 {[%emt 0:09:33]} Bd7 {[%emt 0:08:51]} 17. Qa6 {[%emt 0:01:44]} Nb3+ {[%emt 0:03:02]} 18. Kc2 {[%emt 0:01:46]} Na5 {[%emt 0:02:22]} 19. Be4 {[%emt 0:07:09]} Bc8 {[%emt 0:02:55]} 20. Nxe6 {[%emt 0:00:09]} Bxe6 {[%emt 0:05:29]} 21. Bxa8 {[%emt 0:12:53]} Qxa8 {[%emt 0:00:06]} 22. Nd5 {[%emt 0:00:00]} Bf5+ {[%emt 0:01:39]} 23. Kd2 {[%emt 0:00:00]} Bd8 {[%emt 0:21:12]} 0-1

[Event "27th OIBM 2024"]
[Site "Gmund am Tegernsee"]
[Date "2024.10.28"]
[Round "3.42"]
[White "Restorff, Felix"]
[Black "Beikert, Guenther"]
[Result "1/2-1/2"]
[ECO "B51"]
[WhiteElo "2151"]
[BlackElo "2365"]
[Annotator "RC"]
[PlyCount "80"]
[EventDate "2024.09.16"]
[EventType "swiss"]
[EventCountry "GER"]
[SourceTitle "playchess.com"]
[Source "ChessBase"]
[SourceQuality "1"]
[TimeControl "40/5400+30:1800+30"]

1. e4 {[%emt 0:00:10]} c5 {[%emt 0:00:27]} 2. Nf3 {[%emt 0:00:16]} d6 {[%emt 0:00:15]} 3. Bb5+ {[%emt 0:00:11]} Nc6 {[%emt 0:01:19]} 4. O-O {[%emt 0:00:45]} e5 {[%emt 0:02:22]} 5. Re1 {[%emt 0:06:34]} Nge7 {[%emt 0:00:41]} 6. c3 {[%emt 0:09:49]} a6 {[%emt 0:01:09]} 7. Bf1 {[%emt 0:07:48]} g6 {[%emt 0:00:39]} 8. d4 {[%emt 0:02:36]} exd4 {[%emt 0:02:30]} 9. cxd4 {[%emt 0:00:52]} Bg4 {[%emt 0:00:19]} 10. h3 {[%emt 0:16:19]} Bxf3 {[%emt 0:00:05]} 11. Qxf3 {[%emt 0:00:05]} Bg7 {[%emt 0:00:04]} 12. dxc5 {[%emt 0:03:43]} dxc5 {[%emt 0:00:12]} 13. Nc3 {[%emt 0:00:46]} Nd4 {[%emt 0:01:45]} 14. Qd1 {[%emt 0:03:32]} O-O {[%emt 0:03:38]} 15. Bg5 {[%emt 0:02:36]} h6 {[%emt 0:00:12]} 16. Bxe7 {[%emt 0:01:56]} Qxe7 {[%emt 0:00:05]} 17. Bc4 {[%emt 0:00:54]} Kh7 {[%emt 0:03:53]} 18. Ne2 {[%emt 0:07:29]} b5 {[%emt 0:08:51]} 19. Bd5 {[%emt 0:06:48]} Rad8 {[%emt 0:00:07]} 20. a4 {[%emt 0:04:06]} f5 {[%emt 0:01:26]} 21. Nf4 {[%emt 0:06:06]} Qg5 {[%emt 0:03:32]} 22. g3 {[%emt 0:01:15]} fxe4 {[%emt 0:00:34]} 23. h4 {[%emt 0:01:16]} Qxf4 {[%emt 0:05:51]} 24. gxf4 {[%emt 0:00:52]} Nf3+ {[%emt 0:00:06]} 25. Kf1 {[%emt 0:01:45]} Nxe1 {[%emt 0:00:24]} 26. Kxe1 {[%emt 0:00:19]} Rf5 {[%emt 0:00:16]} 27. Qe2 {[%emt 0:02:03]} Rfxd5 {[%emt 0:02:55]} 28. axb5 {[%emt 0:00:18]} axb5 {[%emt 0:00:06]} 29. Qxb5 {[%emt 0:00:48]} R8d7 {[%emt 0:07:02]} 30. Kf1 {[%emt 0:03:58]} Rf7 {[%emt 0:03:37]} 31. Ra6 {[%emt 0:01:46]} Rdf5 {[%emt 0:01:25]} 32. Re6 {[%emt 0:03:31]} Rxf4 {[%emt 0:04:23]} 33. Qxc5 {[%emt 0:00:16]} Bxb2 {[%emt 0:05:02]} 34. h5 {[%emt 0:03:30]} gxh5 {[%emt 0:00:59]} 35. Re7 {[%emt 0:01:23]} Rxe7 {[%emt 0:01:16]} 36. Qxe7+ {[%emt 0:00:07]} Bg7 {[%emt 0:00:06]} 37. Kg2 {[%emt 0:00:53]} Rg4+ {[%emt 0:02:08]} 38. Kh3 {[%emt 0:00:26]} Rf4 {[%emt 0:02:25]} 39. Kg3 {[%emt 0:00:21]} Rg4+ {[%emt 0:00:53]} 40. Kh3 {[%emt 0:00:07]} Rf4 {[%emt 0:00:05]} 1/2-1/2